[Event "2e tournoi de GMI du Barreau de Paris"]
[Site "Paris, France"]
[Date "2021.06.21"]
[Round "6.3"]
[White "David, Alberto"]
[Black "Dardha, Daniel"]
[Result "0-1"]
[TimeControl "90+30"]
[WhiteElo "2527"]
[BlackElo "2503"]

1. e4 {[%clk 01:30:53]} {[%emt 00:00:06]} c5 {[%clk 01:30:52]} {[%emt
00:00:09]} 2. Nf3 {[%clk 01:31:16]} {[%emt 00:00:06]} Nc6 {[%clk 01:31:16]}
{[%emt 00:00:06]} 3. Nc3 {[%clk 01:31:29]} {[%emt 00:00:17]} e5 {[%clk
01:29:18]} {[%emt 00:02:28]} 4. Bc4 {[%clk 01:31:44]} {[%emt 00:00:16]} Be7
{[%clk 01:29:25]} {[%emt 00:00:22]} 5. d3 {[%clk 01:31:58]} {[%emt 00:00:17]}
d6 {[%clk 01:25:41]} {[%emt 00:04:13]} 6. Nd2 {[%clk 01:32:13]} {[%emt
00:00:15]} Bg5 {[%clk 01:24:08]} {[%emt 00:02:02]} 7. h4 {[%clk 01:28:46]}
{[%emt 00:03:58]} Bh6 {[%clk 01:20:00]} {[%emt 00:04:38]} 8. Qh5 {[%clk
01:28:29]} {[%emt 00:00:47]} g6 {[%clk 01:18:05]} {[%emt 00:02:25]} 9. Qd1
{[%clk 01:28:46]} {[%emt 00:00:12]} Nf6 {[%clk 01:16:21]} {[%emt 00:02:13]} 10.
Nf1 {[%clk 01:15:28]} {[%emt 00:13:49]} Bg4 {[%clk 01:15:01]} {[%emt 00:01:50]}
11. f3 {[%clk 01:15:26]} {[%emt 00:00:32]} Bxc1 {[%clk 01:15:22]} {[%emt
00:00:09]} 12. Qxc1 {[%clk 01:09:36]} {[%emt 00:06:20]} Be6 {[%clk 01:15:40]}
{[%emt 00:00:11]} 13. Qh6 {[%clk 01:06:09]} {[%emt 00:03:57]} Nd4 {[%clk
01:05:30]} {[%emt 00:10:39]} 14. Ne3 {[%clk 00:58:45]} {[%emt 00:07:55]} Ng8
{[%clk 00:59:25]} {[%emt 00:06:34]} 15. Qg5 {[%clk 00:49:46]} {[%emt 00:09:29]}
Nf6 {[%clk 00:56:47]} {[%emt 00:03:08]} 16. Qh6 {[%clk 00:41:14]} {[%emt
00:09:03]} Ng8 {[%clk 00:56:50]} {[%emt 00:00:27]} 17. Qg7 {[%clk 00:24:00]}
{[%emt 00:17:44]} Qf6 {[%clk 00:57:07]} {[%emt 00:00:13]} 18. Qxf6 {[%clk
00:24:26]} {[%emt 00:00:04]} Nxf6 {[%clk 00:57:27]} {[%emt 00:00:10]} 19. Kd2
{[%clk 00:24:42]} {[%emt 00:00:14]} Rb8 {[%clk 00:55:11]} {[%emt 00:02:46]} 20.
Ncd5 {[%clk 00:22:08]} {[%emt 00:03:04]} Nxd5 {[%clk 00:53:12]} {[%emt
00:02:28]} 21. Bxd5 {[%clk 00:22:24]} {[%emt 00:00:15]} Kd7 {[%clk 00:51:55]}
{[%emt 00:01:47]} 22. Raf1 {[%clk 00:18:08]} {[%emt 00:04:46]} f5 {[%clk
00:49:29]} {[%emt 00:02:56]} 23. f4 {[%clk 00:17:37]} {[%emt 00:01:00]} Rbf8
{[%clk 00:41:21]} {[%emt 00:08:38]} 24. fxe5 {[%clk 00:10:18]} {[%emt
00:07:49]} dxe5 {[%clk 00:35:27]} {[%emt 00:06:24]} 25. c3 {[%clk 00:04:35]}
{[%emt 00:06:13]} Nc6 {[%clk 00:35:10]} {[%emt 00:00:47]} 26. Nc4 {[%clk
00:04:58]} {[%emt 00:00:08]} Bxd5 {[%clk 00:31:37]} {[%emt 00:04:03]} 27. exd5
{[%clk 00:05:24]} {[%emt 00:00:04]} Ne7 {[%clk 00:32:00]} {[%emt 00:00:06]} 28.
Re1 {[%clk 00:04:16]} {[%emt 00:01:38]} e4 {[%clk 00:28:43]} {[%emt 00:03:47]}
29. dxe4 {[%clk 00:02:58]} {[%emt 00:01:47]} fxe4 {[%clk 00:29:08]} {[%emt
00:00:05]} 30. Rxe4 {[%clk 00:02:31]} {[%emt 00:00:57]} Nxd5 {[%clk 00:27:41]}
{[%emt 00:01:58]} 31. Rd1 {[%clk 00:02:46]} {[%emt 00:00:16]} Re8 {[%clk
00:26:47]} {[%emt 00:01:24]} 32. Rxe8 {[%clk 00:02:47]} {[%emt 00:00:29]} Kxe8
{[%clk 00:25:47]} {[%emt 00:01:30]} 33. Nd6+ {[%clk 00:01:51]} {[%emt
00:01:25]} Ke7 {[%clk 00:23:38]} {[%emt 00:02:38]} 34. Nxb7 {[%clk 00:02:17]}
{[%emt 00:00:05]} Rc8 {[%clk 00:24:04]} {[%emt 00:00:04]} 35. Re1+ {[%clk
00:01:40]} {[%emt 00:01:07]} Kd7 {[%clk 00:22:14]} {[%emt 00:02:21]} 36. Re5
{[%clk 00:01:31]} {[%emt 00:00:39]} Nb6 {[%clk 00:22:42]} {[%emt 00:00:02]} 37.
Rxc5 {[%clk 00:00:55]} {[%emt 00:01:06]} Rb8 {[%clk 00:22:44]} {[%emt
00:00:28]} 38. Na5 {[%clk 00:01:08]} {[%emt 00:00:18]} Na4 {[%clk 00:23:03]}
{[%emt 00:00:10]} 39. Rc4 {[%clk 00:00:35]} {[%emt 00:01:03]} Rxb2+ {[%clk
00:23:08]} {[%emt 00:00:24]} 40. Ke3 {[%clk 00:00:35]} {[%emt 00:00:30]} Rxa2
{[%clk 00:22:25]} {[%emt 00:01:13]} 41. Nb3 {[%clk 00:00:42]} {[%emt 00:00:22]}
Nb6 {[%clk 00:22:22]} {[%emt 00:00:34]} 42. Rd4+ {[%clk 00:01:01]} {[%emt
00:00:12]} Kc6 {[%clk 00:22:16]} {[%emt 00:00:36]} 43. Rg4 {[%clk 00:00:52]}
{[%emt 00:00:38]} Nd5+ {[%clk 00:19:22]} {[%emt 00:03:25]} 44. Kf3 {[%clk
00:01:18]} {[%emt 00:00:04]} Ra3 {[%clk 00:18:52]} {[%emt 00:01:00]} 45. Nd4+
{[%clk 00:01:37]} {[%emt 00:00:11]} Kc5 {[%clk 00:18:16]} {[%emt 00:01:06]} 46.
Ne6+ {[%clk 00:01:31]} {[%emt 00:00:37]} Kd6 {[%clk 00:18:37]} {[%emt
00:00:08]} 47. Ng5 {[%clk 00:01:31]} {[%emt 00:00:29]} Rxc3+ {[%clk 00:17:24]}
{[%emt 00:01:43]} 48. Kf2 {[%clk 00:01:11]} {[%emt 00:00:50]} Rc7 {[%clk
00:15:42]} {[%emt 00:02:12]} 49. Ra4 {[%clk 00:01:18]} {[%emt 00:00:23]} Re7
{[%clk 00:15:49]} {[%emt 00:00:23]} 50. Kf3 {[%clk 00:00:36]} {[%emt 00:01:12]}
Kc6 {[%clk 00:14:33]} {[%emt 00:01:46]} 51. Ra5 {[%clk 00:00:33]} {[%emt
00:00:34]} Nb4 {[%clk 00:13:53]} {[%emt 00:01:10]} 52. Ne4 {[%clk 00:00:52]}
{[%emt 00:00:11]} Kb6 {[%clk 00:13:47]} {[%emt 00:00:36]} 53. Rg5 {[%clk
00:01:05]} {[%emt 00:00:17]} Nc6 {[%clk 00:13:02]} {[%emt 00:01:15]} 54. Nd6
{[%clk 00:00:53]} {[%emt 00:00:43]} Nd4+ {[%clk 00:11:40]} {[%emt 00:01:51]} 55.
Kf2 {[%clk 00:01:00]} {[%emt 00:00:23]} Re2+ {[%clk 00:11:39]} {[%emt
00:00:31]} 56. Kf1 {[%clk 00:01:10]} {[%emt 00:00:20]} Rc2 {[%clk 00:11:35]}
{[%emt 00:00:34]} 57. h5 {[%clk 00:01:18]} {[%emt 00:00:22]} gxh5 {[%clk
00:11:16]} {[%emt 00:00:50]} 58. Rxh5 {[%clk 00:01:43]} {[%emt 00:00:05]} Rc6
{[%clk 00:11:28]} {[%emt 00:00:18]} 59. Rd5 {[%clk 00:00:35]} {[%emt 00:01:38]}
Nc2 {[%clk 00:09:06]} {[%emt 00:02:52]} 60. Ke2 {[%clk 00:00:55]} {[%emt
00:00:10]} a5 {[%clk 00:09:09]} {[%emt 00:00:27]} 61. Kd2 {[%clk 00:00:39]}
{[%emt 00:00:46]} Nb4 {[%clk 00:09:04]} {[%emt 00:00:36]} 62. Rd4 {[%clk
00:01:03]} {[%emt 00:00:06]} Rc2+ {[%clk 00:07:34]} {[%emt 00:02:00]} 63. Kd1
{[%clk 00:01:26]} {[%emt 00:00:07]} Rxg2 {[%clk 00:06:22]} {[%emt 00:01:42]} 64.
Rh4 {[%clk 00:01:49]} {[%emt 00:00:06]} Rg7 {[%clk 00:05:51]} {[%emt 00:01:01]}
65. Kc1 {[%clk 00:01:56]} {[%emt 00:00:23]} Rd7 {[%clk 00:04:54]} {[%emt
00:01:27]} 66. Rh6 {[%clk 00:01:37]} {[%emt 00:00:50]} Kc5 {[%clk 00:04:50]}
{[%emt 00:00:34]} 67. Ne4+ {[%clk 00:01:44]} {[%emt 00:00:22]} Kc4 {[%clk
00:04:47]} {[%emt 00:00:33]} 68. Kb2 {[%clk 00:01:22]} {[%emt 00:00:52]} Re7
{[%clk 00:04:26]} {[%emt 00:00:52]} 69. Rh4 {[%clk 00:01:16]} {[%emt 00:00:35]}
Nd3+ {[%clk 00:04:08]} {[%emt 00:00:48]} 70. Ka3 {[%clk 00:01:19]} {[%emt
00:00:28]} Nc5 {[%clk 00:03:55]} {[%emt 00:00:43]} 71. Nf6+ {[%clk 00:01:10]}
{[%emt 00:00:38]} Kb5 {[%clk 00:04:13]} {[%emt 00:00:12]} 72. Rxh7 {[%clk
00:01:21]} {[%emt 00:00:19]} Re3+ {[%clk 00:04:09]} {[%emt 00:00:34]} 73. Ka2
{[%clk 00:01:37]} {[%emt 00:00:14]} Rd3 {[%clk 00:04:12]} {[%emt 00:00:27]} 74.
Rh5 {[%clk 00:01:35]} {[%emt 00:00:32]} Rd4 {[%clk 00:04:09]} {[%emt 00:00:33]}
75. Nd5 {[%clk 00:01:40]} {[%emt 00:00:24]} a4 {[%clk 00:03:55]} {[%emt
00:00:44]} 76. Nc3+ {[%clk 00:00:56]} {[%emt 00:01:15]} Kc4 {[%clk 00:04:02]}
{[%emt 00:00:22]} 77. Nxa4 {[%clk 00:00:44]} {[%emt 00:00:42]} Nxa4 {[%clk
00:04:20]} {[%emt 00:00:12]} 78. Rh8 {[%clk 00:00:57]} {[%emt 00:00:16]} Nc3+
{[%clk 00:04:21]} {[%emt 00:00:29]} 79. Kb2 {[%clk 00:01:17]} {[%emt 00:00:10]}
Rd2+ {[%clk 00:04:36]} {[%emt 00:00:15]} 80. Kc1 {[%clk 00:01:42]} {[%emt
00:00:05]} Rg2 {[%clk 00:04:22]} {[%emt 00:00:43]} 81. Rc8+ {[%clk 00:00:50]}
{[%emt 00:01:23]} Kd3 {[%clk 00:04:40]} {[%emt 00:00:12]} 82. Rd8+ {[%clk
00:01:16]} {[%emt 00:00:05]} Ke3 {[%clk 00:05:05]} {[%emt 00:00:05]} 83. Re8+
{[%clk 00:01:27]} {[%emt 00:00:19]} Ne4 {[%clk 00:05:22]} {[%emt 00:00:12]} 84.
Rc8 {[%clk 00:01:06]} {[%emt 00:00:51]} Nd6 {[%clk 00:05:21]} {[%emt 00:00:31]}
85. Rd8 {[%clk 00:00:57]} {[%emt 00:00:39]} Nb5 {[%clk 00:05:36]} {[%emt
00:00:16]} 86. Re8+ {[%clk 00:01:17]} {[%emt 00:00:11]} Kd3 {[%clk 00:06:01]}
{[%emt 00:00:04]} 87. Rc8 {[%clk 00:01:17]} {[%emt 00:00:31]} Rh2 {[%clk
00:06:02]} {[%emt 00:00:28]} 88. Rd8+ {[%clk 00:01:08]} {[%emt 00:00:39]} Nd4
{[%clk 00:06:27]} {[%emt 00:00:06]} 89. Kb1 {[%clk 00:00:58]} {[%emt 00:00:40]}
Rh6 {[%clk 00:06:29]} {[%emt 00:00:27]} 90. Rg8 {[%clk 00:00:44]} {[%emt
00:00:45]} Rb6+ {[%clk 00:06:49]} {[%emt 00:00:10]} 91. Ka2 {[%clk 00:01:04]}
{[%emt 00:00:10]} Ne2 {[%clk 00:06:04]} {[%emt 00:01:14]} 92. Rd8+ {[%clk
00:01:05]} {[%emt 00:00:30]} Kc2 {[%clk 00:06:09]} {[%emt 00:00:25]} 93. Ka3
{[%clk 00:01:29]} {[%emt 00:00:06]} Rb5 {[%clk 00:06:13]} {[%emt 00:00:25]} 94.
Rd7 {[%clk 00:01:37]} {[%emt 00:00:22]} Rb6 {[%clk 00:06:01]} {[%emt 00:00:43]}
95. Rd8 {[%clk 00:01:56]} {[%emt 00:00:10]} Kc3 {[%clk 00:06:26]} {[%emt
00:00:04]} 96. Rc8 {[%clk 00:02:21]} {[%emt 00:00:05]} Kd3 {[%clk 00:06:53]}
{[%emt 00:00:03]} 97. Ka4 {[%clk 00:02:19]} {[%emt 00:00:33]} Nd4 {[%clk
00:06:53]} {[%emt 00:00:30]} 98. Ka5 {[%clk 00:02:31]} {[%emt 00:00:18]} Rb5+
{[%clk 00:07:13]} {[%emt 00:00:09]} 99. Ka6 {[%clk 00:02:55]} {[%emt 00:00:06]}
Rb3 {[%clk 00:07:20]} {[%emt 00:00:23]} 100. Rc5 {[%clk 00:03:06]} {[%emt
00:00:19]} Ne6 {[%clk 00:07:41]} {[%emt 00:00:09]} 101. Re5 {[%clk 00:03:03]}
{[%emt 00:00:33]} Nc7+ {[%clk 00:07:48]} {[%emt 00:00:23]} 102. Ka7 {[%clk
00:03:13]} {[%emt 00:00:19]} Nb5+ {[%clk 00:07:30]} {[%emt 00:00:49]} 103. Ka6
{[%clk 00:03:31]} {[%emt 00:00:12]} Kc4 {[%clk 00:07:50]} {[%emt 00:00:10]} 104.
Rh5 {[%clk 00:03:18]} {[%emt 00:00:43]} Nc7+ {[%clk 00:07:48]} {[%emt
00:00:32]} 105. Ka7 {[%clk 00:03:38]} {[%emt 00:00:09]} Ne6 {[%clk 00:08:12]}
{[%emt 00:00:06]} 106. Re5 {[%clk 00:01:19]} {[%emt 00:02:49]} Nc5 {[%clk
00:08:27]} {[%emt 00:00:15]} 107. Rh5 {[%clk 00:01:26]} {[%emt 00:00:23]} Rb7+
{[%clk 00:08:42]} {[%emt 00:00:15]} 108. Ka8 {[%clk 00:01:52]} {[%emt
00:00:04]} Re7 {[%clk 00:08:59]} {[%emt 00:00:13]} 109. Kb8 {[%clk 00:01:16]}
{[%emt 00:01:06]} Kb5 {[%clk 00:09:27]} {[%emt 00:00:02]} 110. Kc8 {[%clk
00:01:37]} {[%emt 00:00:09]} Kc6 {[%clk 00:09:49]} {[%emt 00:00:08]} 111. Kb8
{[%clk 00:00:35]} {[%emt 00:01:33]} Na6+ {[%clk 00:09:29]} {[%emt 00:00:51]}
112. Ka8 {[%clk 00:00:59]} {[%emt 00:00:06]} Nc7+ {[%clk 00:09:53]} {[%emt
00:00:06]} 0-1

[ePGN "0.1;DGT LiveChess/2.2.5"]

[Event "2e tournoi de GMI du Barreau de Paris"]
[Site "Paris, France"]
[Date "2021.06.22"]
[Round "7.3"]
[White "Msellek, Ilyass"]
[Black "Kevlishvili, Robby"]
[Result "0-1"]
[TimeControl "90+30"]
[WhiteElo "2334"]
[BlackElo "2499"]

1. e4 {[%clk 01:30:43]} {[%emt 00:00:16]} c5 {[%clk 01:30:55]} {[%emt
00:00:05]} 2. Nf3 {[%clk 01:31:00]} {[%emt 00:00:12]} d6 {[%clk 01:31:20]}
{[%emt 00:00:06]} 3. d4 {[%clk 01:31:06]} {[%emt 00:00:25]} cxd4 {[%clk
01:31:45]} {[%emt 00:00:05]} 4. Nxd4 {[%clk 01:31:30]} {[%emt 00:00:05]} Nf6
{[%clk 01:32:10]} {[%emt 00:00:04]} 5. Nc3 {[%clk 01:31:48]} {[%emt 00:00:12]}
a6 {[%clk 01:32:35]} {[%emt 00:00:06]} 6. Bg5 {[%clk 01:31:38]} {[%emt
00:00:40]} e6 {[%clk 01:32:40]} {[%emt 00:00:26]} 7. f4 {[%clk 01:31:28]}
{[%emt 00:00:40]} Nbd7 {[%clk 01:32:47]} {[%emt 00:00:23]} 8. Qf3 {[%clk
01:30:50]} {[%emt 00:01:07]} Qc7 {[%clk 01:32:57]} {[%emt 00:00:20]} 9. O-O-O
{[%clk 01:30:43]} {[%emt 00:00:38]} b5 {[%clk 01:32:53]} {[%emt 00:00:34]} 10.
e5 {[%clk 01:27:48]} {[%emt 00:03:24]} Bb7 {[%clk 01:32:19]} {[%emt 00:01:04]}
11. Qh3 {[%clk 01:27:59]} {[%emt 00:00:19]} dxe5 {[%clk 01:28:38]} {[%emt
00:04:12]} 12. Nxe6 {[%clk 01:27:23]} {[%emt 00:01:06]} fxe6 {[%clk 01:28:53]}
{[%emt 00:00:15]} 13. Qxe6+ {[%clk 01:27:46]} {[%emt 00:00:06]} Be7 {[%clk
01:29:17]} {[%emt 00:00:06]} 14. Bxb5 {[%clk 01:27:15]} {[%emt 00:01:01]} axb5
{[%clk 01:29:33]} {[%emt 00:00:15]} 15. Nxb5 {[%clk 01:27:24]} {[%emt
00:00:21]} Qb6 {[%clk 01:23:00]} {[%emt 00:07:03]} 16. Nd6+ {[%clk 01:15:37]}
{[%emt 00:12:17]} Kd8 {[%clk 01:23:23]} {[%emt 00:00:07]} 17. Bxf6 {[%clk
01:11:24]} {[%emt 00:04:42]} gxf6 {[%clk 01:10:07]} {[%emt 00:13:45]} 18. Nxb7+
{[%clk 01:05:31]} {[%emt 00:06:23]} Qxb7 {[%clk 01:10:28]} {[%emt 00:00:10]} 19.
Rxd7+ {[%clk 01:04:46]} {[%emt 00:01:14]} Qxd7 {[%clk 01:10:52]} {[%emt
00:00:06]} 20. Rd1 {[%clk 01:05:13]} {[%emt 00:00:04]} Qxd1+ {[%clk 01:09:52]}
{[%emt 00:01:30]} 21. Kxd1 {[%clk 01:05:37]} {[%emt 00:00:06]} exf4 {[%clk
01:09:03]} {[%emt 00:01:18]} 22. c3 {[%clk 00:47:55]} {[%emt 00:18:12]} Ke8
{[%clk 01:06:37]} {[%emt 00:02:56]} 23. Qc6+ {[%clk 00:35:31]} {[%emt
00:12:54]} Kf7 {[%clk 01:06:49]} {[%emt 00:00:18]} 24. Qc4+ {[%clk 00:35:29]}
{[%emt 00:00:33]} Kg7 {[%clk 01:07:06]} {[%emt 00:00:12]} 25. a4 {[%clk
00:31:30]} {[%emt 00:04:30]} Rhd8+ {[%clk 01:07:07]} {[%emt 00:00:29]} 26. Kc2
{[%clk 00:31:02]} {[%emt 00:00:58]} Bd6 {[%clk 01:07:24]} {[%emt 00:00:13]} 27.
Qb5 {[%clk 00:28:02]} {[%emt 00:03:30]} Be5 {[%clk 01:05:43]} {[%emt 00:02:11]}
28. a5 {[%clk 00:08:28]} {[%emt 00:20:05]} Ra7 {[%clk 01:05:53]} {[%emt
00:00:20]} 29. h4 {[%clk 00:02:03]} {[%emt 00:06:55]} Rda8 {[%clk 01:05:50]}
{[%emt 00:00:32]} 30. b4 {[%clk 00:01:55]} {[%emt 00:00:38]} Rc7 {[%clk
01:06:06]} {[%emt 00:00:14]} 31. c4 {[%clk 00:02:03]} {[%emt 00:00:22]} Rb8
{[%clk 01:04:58]} {[%emt 00:01:37]} 32. Qxb8 {[%clk 00:00:47]} {[%emt
00:01:47]} Rxc4+ {[%clk 01:05:23]} {[%emt 00:00:05]} 33. Kd3 {[%clk 00:00:36]}
{[%emt 00:00:41]} Rd4+ {[%clk 01:05:48]} {[%emt 00:00:04]} 34. Kc3 {[%clk
00:01:01]} {[%emt 00:00:05]} Rd8+ {[%clk 01:06:14]} {[%emt 00:00:04]} 35. Qxe5
{[%clk 00:01:26]} {[%emt 00:00:05]} fxe5 {[%clk 01:06:42]} {[%emt 00:00:03]} 36.
a6 {[%clk 00:00:58]} {[%emt 00:00:58]} e4 {[%clk 01:07:07]} {[%emt 00:00:04]}
0-1

[Event "2e tournoi de GMI du Barreau de Paris"]
[Site "Paris, France"]
[Date "2021.06.22"]
[Round "7.1"]
[White "Vlachos, Anatole"]
[Black "David, Alberto"]
[Result "1/2-1/2"]
[TimeControl "90+30"]
[WhiteElo "2439"]
[BlackElo "2527"]

1. e4 {[%clk 01:23:16]} {[%emt 00:07:41]} c6 {[%clk 01:30:51]} {[%emt
00:00:10]} 2. Nc3 {[%clk 01:23:39]} {[%emt 00:00:07]} d5 {[%clk 01:31:17]}
{[%emt 00:00:04]} 3. Nf3 {[%clk 01:24:06]} {[%emt 00:00:03]} Bg4 {[%clk
01:31:29]} {[%emt 00:00:17]} 4. h3 {[%clk 01:24:30]} {[%emt 00:00:06]} Bxf3
{[%clk 01:31:54]} {[%emt 00:00:05]} 5. Qxf3 {[%clk 01:24:57]} {[%emt 00:00:03]}
e6 {[%clk 01:32:17]} {[%emt 00:00:07]} 6. d4 {[%clk 01:24:30]} {[%emt
00:00:57]} dxe4 {[%clk 01:32:36]} {[%emt 00:00:11]} 7. Qxe4 {[%clk 01:24:55]}
{[%emt 00:00:05]} Nf6 {[%clk 01:32:53]} {[%emt 00:00:13]} 8. Qd3 {[%clk
01:25:23]} {[%emt 00:00:03]} Be7 {[%clk 01:25:03]} {[%emt 00:08:20]} 9. g3
{[%clk 01:25:48]} {[%emt 00:00:05]} Na6 {[%clk 01:24:48]} {[%emt 00:00:45]} 10.
a3 {[%clk 01:25:26]} {[%emt 00:00:52]} Qb6 {[%clk 01:25:04]} {[%emt 00:00:14]}
11. Ne2 {[%clk 01:12:53]} {[%emt 00:13:02]} Rd8 {[%clk 01:21:41]} {[%emt
00:03:54]} 12. Qf3 {[%clk 01:11:17]} {[%emt 00:02:06]} e5 {[%clk 00:47:56]}
{[%emt 00:34:16]} 13. dxe5 {[%clk 01:04:45]} {[%emt 00:07:02]} Qa5+ {[%clk
00:47:57]} {[%emt 00:00:28]} 14. Nc3 {[%clk 01:04:49]} {[%emt 00:00:26]} Nb4
{[%clk 00:41:01]} {[%emt 00:07:26]} 15. axb4 {[%clk 00:46:25]} {[%emt
00:18:53]} Qxa1 {[%clk 00:41:16]} {[%emt 00:00:15]} 16. Qe3 {[%clk 00:46:32]}
{[%emt 00:00:22]} Nd5 {[%clk 00:40:06]} {[%emt 00:01:41]} 17. Nxd5 {[%clk
00:46:41]} {[%emt 00:00:21]} Rxd5 {[%clk 00:40:28]} {[%emt 00:00:08]} 18. Bd3
{[%clk 00:45:44]} {[%emt 00:01:26]} Bxb4+ {[%clk 00:33:32]} {[%emt 00:07:28]}
19. Ke2 {[%clk 00:45:59]} {[%emt 00:00:15]} Qa5 {[%clk 00:33:15]} {[%emt
00:00:47]} 20. f4 {[%clk 00:45:59]} {[%emt 00:00:30]} Bc5 {[%clk 00:10:33]}
{[%emt 00:23:12]} 21. Qe4 {[%clk 00:39:06]} {[%emt 00:07:22]} Qb4 {[%clk
00:10:45]} {[%emt 00:00:19]} 22. Qf3 {[%clk 00:39:26]} {[%emt 00:00:09]} O-O
{[%clk 00:09:56]} {[%emt 00:01:19]} 23. Rd1 {[%clk 00:32:19]} {[%emt 00:07:37]}
Rfd8 {[%clk 00:10:11]} {[%emt 00:00:14]} 24. h4 {[%clk 00:31:54]} {[%emt
00:00:55]} Qa4 {[%clk 00:08:04]} {[%emt 00:02:38]} 25. Kf1 {[%clk 00:31:46]}
{[%emt 00:00:37]} Bb6 {[%clk 00:03:45]} {[%emt 00:04:50]} 26. h5 {[%clk
00:31:45]} {[%emt 00:00:31]} h6 {[%clk 00:02:58]} {[%emt 00:01:17]} 27. Qe2
{[%clk 00:29:07]} {[%emt 00:03:07]} Qb4 {[%clk 00:02:01]} {[%emt 00:01:29]} 28.
Kg2 {[%clk 00:26:41]} {[%emt 00:02:56]} a5 {[%clk 00:02:15]} {[%emt 00:00:16]}
29. e6 {[%clk 00:18:16]} {[%emt 00:08:55]} Qe7 {[%clk 00:02:03]} {[%emt
00:00:42]} 30. exf7+ {[%clk 00:17:50]} {[%emt 00:00:56]} Kxf7 {[%clk 00:02:08]}
{[%emt 00:00:25]} 31. Qg4 {[%clk 00:16:57]} {[%emt 00:01:22]} Kf8 {[%clk
00:01:45]} {[%emt 00:00:54]} 32. Bd2 {[%clk 00:16:49]} {[%emt 00:00:37]} Rxd3
{[%clk 00:00:55]} {[%emt 00:01:21]} 1/2-1/2